[Event "Titled Tuesday Blitz January 17 Early 2023"]
[White "Biastoch, Bennet"]
[Black "Rodrigues, Leonardo De Miranda"]
[WhiteFideId "12939889"]
[BlackFideId "2108658"]
[WhiteElo "2257"]
[BlackElo "2112"]
[Result "1/2-1/2"]
[Round "08"]
[TimeControl "180+2"]
[Date "2023.01.17"]
[WhiteClock "0:01:45"]
[BlackClock "0:00:42"]

1. e4 {[%clk 0:03:00]}  c5 {[%clk 0:02:47]} 2. Nf3 {[%clk 0:03:00]}  Nc6 {[%clk 0:02:45]} 3. d4 {[%clk 0:03:00]}  cxd4 {[%clk 0:02:41]} 4. Nxd4 {[%clk 0:03:01]}  Nf6 {[%clk 0:02:36]} 5. Nc3 {[%clk 0:03:01]}  d6 {[%clk 0:02:28]} 6. Bg5 {[%clk 0:03:00]}  g6 {[%clk 0:02:24]} 7. Bxf6 {[%clk 0:02:59]}  exf6 {[%clk 0:02:22]} 8. Bb5 {[%clk 0:02:59]}  Bd7 {[%clk 0:02:20]} 9. O-O {[%clk 0:02:58]}  a6 {[%clk 0:02:14]} 10. Bc4 {[%clk 0:02:58]}  Bg7 {[%clk 0:02:08]} 11. Nxc6 {[%clk 0:02:56]}  Bxc6 {[%clk 0:02:06]} 12. Nd5 {[%clk 0:02:56]}  O-O {[%clk 0:02:04]} 13. c3 {[%clk 0:02:56]}  Re8 {[%clk 0:02:03]} 14. Qd3 {[%clk 0:02:53]}  Rc8 {[%clk 0:01:59]} 15. a4 {[%clk 0:02:51]}  b5 {[%clk 0:01:45]} 16. axb5 {[%clk 0:02:49]}  axb5 {[%clk 0:01:45]} 17. Bxb5 {[%clk 0:02:45]}  Bxb5 {[%clk 0:01:46]} 18. Qxb5 {[%clk 0:02:45]}  Rxe4 {[%clk 0:01:44]} 19. Rfe1 {[%clk 0:02:41]}  f5 {[%clk 0:01:41]} 20. f3 {[%clk 0:02:35]}  Re5 {[%clk 0:01:37]} 21. Qb7 {[%clk 0:02:31]}  Rb8 {[%clk 0:01:32]} 22. Qc6 {[%clk 0:02:31]}  Rxb2 {[%clk 0:01:26]} 23. Rxe5 {[%clk 0:02:19]}  Bxe5 {[%clk 0:01:20]} 24. Ne3 {[%clk 0:02:10]}  Bxh2+ {[%clk 0:01:15]} 25. Kxh2 {[%clk 0:01:46]}  Qh4+ {[%clk 0:01:15]} 26. Kg1 {[%clk 0:01:47]}  Qf2+ {[%clk 0:01:15]} 27. Kh1 {[%clk 0:01:48]}  Qxe3 {[%clk 0:01:05]} 28. Qxd6 {[%clk 0:01:48]}  Qh6+ {[%clk 0:00:55]} 29. Kg1 {[%clk 0:01:45]}  Qe3+ {[%clk 0:00:52]} 30. Kh1 {[%clk 0:01:45]}  Qh6+ {[%clk 0:00:43]} 31. Kg1 {[%clk 0:01:45]}  Qe3+ {[%clk 0:00:42]} 32. Kh1 {[%clk 0:01:45]} 1/2-1/2


[Site "https://www.chess.com"]

[Event "Titled Tuesday Blitz January 17 Early 2023"]
[White "Sonnenschein, Philipp"]
[Black "Sovetbekova, Nurai"]
[WhiteFideId "16250877"]
[BlackFideId "13801910"]
[WhiteElo "2224"]
[BlackElo "1764"]
[Result "1-0"]
[Round "08"]
[TimeControl "180+2"]
[Date "2023.01.17"]
[WhiteClock "0:00:14"]
[BlackClock "0:00:09"]

1. e4 {[%clk 0:01:02]}  c5 {[%clk 0:02:58]} 2. Nf3 {[%clk 0:01:02]}  d6 {[%clk 0:02:58]} 3. d4 {[%clk 0:01:02]}  cxd4 {[%clk 0:02:59]} 4. Nxd4 {[%clk 0:01:03]}  Nf6 {[%clk 0:02:59]} 5. Nc3 {[%clk 0:01:03]}  a6 {[%clk 0:02:59]} 6. Be2 {[%clk 0:01:02]}  e5 {[%clk 0:02:58]} 7. Nb3 {[%clk 0:01:02]}  Be7 {[%clk 0:02:58]} 8. Be3 {[%clk 0:01:03]}  Be6 {[%clk 0:02:58]} 9. Nd5 {[%clk 0:01:00]}  Bxd5 {[%clk 0:02:55]} 10. exd5 {[%clk 0:01:01]}  Nbd7 {[%clk 0:02:55]} 11. O-O {[%clk 0:01:00]}  O-O {[%clk 0:02:53]} 12. c4 {[%clk 0:01:00]}  Rc8 {[%clk 0:02:52]} 13. Qd2 {[%clk 0:01:00]}  Ne4 {[%clk 0:02:49]} 14. Qa5 {[%clk 0:00:56]}  Qe8 {[%clk 0:02:25]} 15. Rac1 {[%clk 0:00:53]}  Ndc5 {[%clk 0:02:17]} 16. Nxc5 {[%clk 0:00:50]}  Nxc5 {[%clk 0:02:17]} 17. b4 {[%clk 0:00:48]}  Ne4 {[%clk 0:02:11]} 18. f3 {[%clk 0:00:46]}  Ng5 {[%clk 0:02:07]} 19. h4 {[%clk 0:00:43]}  Nxf3+ {[%clk 0:01:53]} 20. Bxf3 {[%clk 0:00:36]}  Bxh4 {[%clk 0:01:52]} 21. c5 {[%clk 0:00:32]}  dxc5 {[%clk 0:01:36]} 22. Bxc5 {[%clk 0:00:32]}  Be7 {[%clk 0:01:24]} 23. d6 {[%clk 0:00:32]}  Bg5 {[%clk 0:01:24]} 24. Rcd1 {[%clk 0:00:28]}  Qd7 {[%clk 0:01:20]} 25. Qb6 {[%clk 0:00:25]}  Rb8 {[%clk 0:01:11]} 26. Qc7 {[%clk 0:00:25]}  Qb5 {[%clk 0:00:37]} 27. d7 {[%clk 0:00:24]}  Rfd8 {[%clk 0:00:37]} 28. a4 {[%clk 0:00:17]}  Qxa4 {[%clk 0:00:31]} 29. Bxb7 {[%clk 0:00:17]}  Qc2 {[%clk 0:00:20]} 30. Bd5 {[%clk 0:00:15]}  Bf6 {[%clk 0:00:20]} 31. Rde1 {[%clk 0:00:12]}  Qa4 {[%clk 0:00:18]} 32. Bc6 {[%clk 0:00:10]}  Qa2 {[%clk 0:00:18]} 33. Rf2 {[%clk 0:00:10]}  Qe6 {[%clk 0:00:16]} 34. Ref1 {[%clk 0:00:10]}  Qg4 {[%clk 0:00:13]} 35. Ba7 {[%clk 0:00:08]}  Rxb4 {[%clk 0:00:10]} 36. Rxf6 {[%clk 0:00:08]}  gxf6 {[%clk 0:00:10]} 37. Qxd8+ {[%clk 0:00:08]}  Kg7 {[%clk 0:00:09]} 38. Qxf6+ {[%clk 0:00:09]}  Kg8 {[%clk 0:00:10]} 39. Qxf7+ {[%clk 0:00:10]}  Kh8 {[%clk 0:00:10]} 40. Qf8+ {[%clk 0:00:11]}  Qg8 {[%clk 0:00:09]} 41. Qxg8+ {[%clk 0:00:11]}  Kxg8 {[%clk 0:00:09]} 42. d8=Q+ {[%clk 0:00:12]}  Kg7 {[%clk 0:00:09]} 43. Qf6+ {[%clk 0:00:13]}  Kg8 {[%clk 0:00:09]} 44. Qf8# {[%clk 0:00:14]} 1-0


[Site "https://www.chess.com"]

[Event "Titled Tuesday Blitz January 17 Early 2023"]
[White "Samaganova, Aleksandra"]
[Black "Ruiz Aguilar, Pablo Alexander"]
[WhiteFideId "13800221"]
[BlackFideId "4401352"]
[WhiteElo "1856"]
[BlackElo "2161"]
[Result "1-0"]
[Round "08"]
[TimeControl "180+2"]
[Date "2023.01.17"]
[WhiteClock "0:00:10"]
[BlackClock "0:00:12"]

1. c4 {[%clk 0:03:00]}  c6 {[%clk 0:02:59]} 2. Nf3 {[%clk 0:02:59]}  d5 {[%clk 0:03:00]} 3. e3 {[%clk 0:02:59]}  e6 {[%clk 0:02:59]} 4. Nc3 {[%clk 0:02:59]}  Nf6 {[%clk 0:02:59]} 5. d4 {[%clk 0:02:59]}  Nbd7 {[%clk 0:03:00]} 6. Bd3 {[%clk 0:02:58]}  Bd6 {[%clk 0:03:00]} 7. O-O {[%clk 0:02:58]}  Qe7 {[%clk 0:03:00]} 8. Re1 {[%clk 0:02:57]}  O-O {[%clk 0:03:00]} 9. e4 {[%clk 0:02:56]}  dxc4 {[%clk 0:03:00]} 10. Bxc4 {[%clk 0:02:55]}  e5 {[%clk 0:03:01]} 11. d5 {[%clk 0:02:49]}  Nb6 {[%clk 0:02:53]} 12. Bb3 {[%clk 0:02:48]}  Bg4 {[%clk 0:02:51]} 13. h3 {[%clk 0:02:45]}  Bh5 {[%clk 0:02:49]} 14. Bg5 {[%clk 0:02:31]}  h6 {[%clk 0:02:47]} 15. Bh4 {[%clk 0:02:29]}  g5 {[%clk 0:02:44]} 16. Bg3 {[%clk 0:02:29]}  Bg6 {[%clk 0:02:44]} 17. dxc6 {[%clk 0:02:22]}  bxc6 {[%clk 0:02:43]} 18. Qe2 {[%clk 0:02:16]}  Rfd8 {[%clk 0:02:41]} 19. Red1 {[%clk 0:02:15]}  a5 {[%clk 0:02:40]} 20. a3 {[%clk 0:02:11]}  a4 {[%clk 0:02:39]} 21. Ba2 {[%clk 0:02:11]}  Kg7 {[%clk 0:02:39]} 22. Rac1 {[%clk 0:02:11]}  Nh5 {[%clk 0:02:33]} 23. Bh2 {[%clk 0:02:07]}  Rab8 {[%clk 0:02:22]} 24. Rd2 {[%clk 0:02:02]}  f6 {[%clk 0:02:13]} 25. Rcd1 {[%clk 0:01:59]}  Bc5 {[%clk 0:02:13]} 26. g4 {[%clk 0:01:27]}  Nf4 {[%clk 0:02:11]} 27. Bxf4 {[%clk 0:01:27]}  exf4 {[%clk 0:02:12]} 28. Rxd8 {[%clk 0:01:23]}  Rxd8 {[%clk 0:02:11]} 29. Rxd8 {[%clk 0:01:23]}  Qxd8 {[%clk 0:02:12]} 30. e5 {[%clk 0:01:24]}  Qd3 {[%clk 0:01:43]} 31. exf6+ {[%clk 0:01:22]}  Kf8 {[%clk 0:01:43]} 32. Ne5 {[%clk 0:01:03]}  Qg3+ {[%clk 0:01:25]} 33. Kf1 {[%clk 0:00:46]}  Qxh3+ {[%clk 0:01:25]} 34. Ke1 {[%clk 0:00:42]}  Qh1+ {[%clk 0:01:18]} 35. Kd2 {[%clk 0:00:38]}  Be8 {[%clk 0:00:49]} 36. f7 {[%clk 0:00:34]}  Bxf7 {[%clk 0:00:47]} 37. Nxf7 {[%clk 0:00:25]}  Qa1 {[%clk 0:00:35]} 38. Kc2 {[%clk 0:00:17]}  Qg1 {[%clk 0:00:32]} 39. Ne4 {[%clk 0:00:13]}  Be7 {[%clk 0:00:31]} 40. Nxh6 {[%clk 0:00:10]}  Nd5 {[%clk 0:00:29]} 41. Nf5 {[%clk 0:00:10]}  Qa1 {[%clk 0:00:21]} 42. Bxd5 {[%clk 0:00:09]}  cxd5 {[%clk 0:00:21]} 43. Nxe7 {[%clk 0:00:09]}  Qa2 {[%clk 0:00:19]} 44. Nc5 {[%clk 0:00:08]}  Qc4+ {[%clk 0:00:13]} 45. Qxc4 {[%clk 0:00:08]}  dxc4 {[%clk 0:00:13]} 46. Nf5 {[%clk 0:00:08]}  Kf7 {[%clk 0:00:13]} 47. Kc3 {[%clk 0:00:08]}  Kf6 {[%clk 0:00:13]} 48. Kxc4 {[%clk 0:00:08]}  Ke5 {[%clk 0:00:14]} 49. Kd3 {[%clk 0:00:07]}  f3 {[%clk 0:00:13]} 50. Ke3 {[%clk 0:00:07]}  Kd5 {[%clk 0:00:13]} 51. Nxa4 {[%clk 0:00:07]}  Kc4 {[%clk 0:00:14]} 52. Kxf3 {[%clk 0:00:07]}  Kb3 {[%clk 0:00:14]} 53. Nc5+ {[%clk 0:00:07]}  Kxb2 {[%clk 0:00:14]} 54. Ne6 {[%clk 0:00:08]}  Kxa3 {[%clk 0:00:14]} 55. Nxg5 {[%clk 0:00:09]}  Kb4 {[%clk 0:00:14]} 56. Ne4 {[%clk 0:00:09]}  Kb5 {[%clk 0:00:14]} 57. Kf4 {[%clk 0:00:09]}  Kc6 {[%clk 0:00:14]} 58. Ke5 {[%clk 0:00:10]}  Kd7 {[%clk 0:00:15]} 59. Kf6 {[%clk 0:00:11]}  Ke8 {[%clk 0:00:15]} 60. Kg7 {[%clk 0:00:11]}  Kd7 {[%clk 0:00:14]} 61. Kf7 {[%clk 0:00:11]}  Kc6 {[%clk 0:00:14]} 62. g5 {[%clk 0:00:12]}  Kd5 {[%clk 0:00:14]} 63. g6 {[%clk 0:00:13]}  Kxe4 {[%clk 0:00:15]} 64. Nh4 {[%clk 0:00:13]}  Kf4 {[%clk 0:00:14]} 65. Ng2+ {[%clk 0:00:12]}  Kf3 {[%clk 0:00:14]} 66. Ne1+ {[%clk 0:00:12]}  Kxf2 {[%clk 0:00:13]} 67. g7 {[%clk 0:00:12]}  Kxe1 {[%clk 0:00:13]} 68. g8=Q {[%clk 0:00:12]}  Kd2 {[%clk 0:00:14]} 69. Qg3 {[%clk 0:00:12]}  Kc2 {[%clk 0:00:13]} 70. Ke6 {[%clk 0:00:12]}  Kb2 {[%clk 0:00:13]} 71. Kd5 {[%clk 0:00:13]}  Ka2 {[%clk 0:00:13]} 72. Qb8 {[%clk 0:00:11]}  Ka3 {[%clk 0:00:11]} 73. Kc4 {[%clk 0:00:11]}  Ka2 {[%clk 0:00:11]} 74. Kc3 {[%clk 0:00:11]}  Ka1 {[%clk 0:00:12]} 75. Qb2# {[%clk 0:00:10]} 1-0


[Site "https://www.chess.com"]

[Event "Titled Tuesday Blitz January 17 Early 2023"]
[White "De Souza, Cristiano Gomes"]
[Black "Carrasco Miranda, Andres"]
[WhiteFideId "2151758"]
[BlackFideId "3405990"]
[WhiteElo "2018"]
[BlackElo "2240"]
[Result "0-1"]
[Round "08"]
[TimeControl "180+2"]
[Date "2023.01.17"]
[WhiteClock "0:01:45"]
[BlackClock "0:01:28"]

1. d4 {[%clk 0:03:00]}  Nf6 {[%clk 0:02:58]} 2. c4 {[%clk 0:03:01]}  g6 {[%clk 0:02:57]} 3. Nc3 {[%clk 0:03:00]}  d5 {[%clk 0:02:57]} 4. Bf4 {[%clk 0:03:00]}  Bg7 {[%clk 0:02:57]} 5. e3 {[%clk 0:03:01]}  O-O {[%clk 0:02:56]} 6. Rc1 {[%clk 0:03:01]}  c5 {[%clk 0:02:51]} 7. dxc5 {[%clk 0:03:00]}  Be6 {[%clk 0:02:50]} 8. Nf3 {[%clk 0:02:49]}  Nc6 {[%clk 0:02:49]} 9. Ng5 {[%clk 0:02:44]}  Qa5 {[%clk 0:02:47]} 10. Nxe6 {[%clk 0:02:42]}  fxe6 {[%clk 0:02:48]} 11. Be2 {[%clk 0:02:39]}  e5 {[%clk 0:02:46]} 12. Bg3 {[%clk 0:02:33]}  d4 {[%clk 0:02:45]} 13. exd4 {[%clk 0:02:20]}  exd4 {[%clk 0:02:46]} 14. O-O {[%clk 0:02:06]}  dxc3 {[%clk 0:02:44]} 15. Rxc3 {[%clk 0:02:07]}  Qxc5 {[%clk 0:02:42]} 16. a3 {[%clk 0:02:05]}  Rad8 {[%clk 0:02:40]} 17. Qc1 {[%clk 0:02:02]}  Ne4 {[%clk 0:02:39]} 18. Re3 {[%clk 0:02:00]}  Nxg3 {[%clk 0:02:35]} 19. hxg3 {[%clk 0:02:00]}  Bh6 {[%clk 0:02:32]} 20. f4 {[%clk 0:01:56]}  Bg7 {[%clk 0:02:11]} 21. Kh2 {[%clk 0:01:54]}  e5 {[%clk 0:02:06]} 22. b4 {[%clk 0:01:53]}  Qe7 {[%clk 0:01:58]} 23. Bf3 {[%clk 0:01:51]}  Nd4 {[%clk 0:01:46]} 24. Bd5+ {[%clk 0:01:50]}  Kh8 {[%clk 0:01:46]} 25. Qd2 {[%clk 0:01:47]}  Nf5 {[%clk 0:01:38]} 26. Re4 {[%clk 0:01:45]}  Qc7 {[%clk 0:01:33]} 27. fxe5 {[%clk 0:01:45]}  Bxe5 {[%clk 0:01:28]} 0-1


[Site "https://www.chess.com"]

[Event "Titled Tuesday Blitz January 17 Early 2023"]
[White "Broca Jimenez, Fernando"]
[Black "Matveeva, Olga"]
[WhiteFideId "5104742"]
[BlackFideId "24107018"]
[WhiteElo "2075"]
[BlackElo "2128"]
[Result "1/2-1/2"]
[Round "08"]
[TimeControl "180+2"]
[Date "2023.01.17"]
[WhiteClock "0:00:23"]
[BlackClock "0:00:20"]

1. e4 {[%clk 0:03:00]}  e6 {[%clk 0:02:58]} 2. d4 {[%clk 0:02:59]}  d5 {[%clk 0:02:59]} 3. exd5 {[%clk 0:02:59]}  exd5 {[%clk 0:02:59]} 4. Bd3 {[%clk 0:02:59]}  Nf6 {[%clk 0:02:59]} 5. Nf3 {[%clk 0:02:59]}  c5 {[%clk 0:02:58]} 6. O-O {[%clk 0:02:52]}  c4 {[%clk 0:02:58]} 7. Re1+ {[%clk 0:02:48]}  Be7 {[%clk 0:02:58]} 8. Bf1 {[%clk 0:02:49]}  O-O {[%clk 0:02:59]} 9. g3 {[%clk 0:02:49]}  Nc6 {[%clk 0:02:57]} 10. Bg2 {[%clk 0:02:49]}  Re8 {[%clk 0:02:47]} 11. Bg5 {[%clk 0:02:45]}  h6 {[%clk 0:02:43]} 12. Bf4 {[%clk 0:02:45]}  b5 {[%clk 0:02:27]} 13. Nbd2 {[%clk 0:01:28]}  Bb7 {[%clk 0:02:25]} 14. c3 {[%clk 0:01:24]}  a5 {[%clk 0:02:24]} 15. Ne5 {[%clk 0:01:22]}  b4 {[%clk 0:02:20]} 16. Nxc6 {[%clk 0:01:19]}  Bxc6 {[%clk 0:02:19]} 17. Be5 {[%clk 0:01:18]}  Qd7 {[%clk 0:02:11]} 18. Bxf6 {[%clk 0:01:04]}  Bxf6 {[%clk 0:02:10]} 19. Qf3 {[%clk 0:01:04]}  Rxe1+ {[%clk 0:01:59]} 20. Rxe1 {[%clk 0:01:03]}  Re8 {[%clk 0:01:51]} 21. Rxe8+ {[%clk 0:00:58]}  Qxe8 {[%clk 0:01:52]} 22. Qe3 {[%clk 0:00:58]}  bxc3 {[%clk 0:01:13]} 23. Qxe8+ {[%clk 0:00:50]}  Bxe8 {[%clk 0:01:14]} 24. bxc3 {[%clk 0:00:48]}  Bc6 {[%clk 0:01:00]} 25. Nxc4 {[%clk 0:00:47]}  dxc4 {[%clk 0:00:50]} 26. Bxc6 {[%clk 0:00:46]}  Kf8 {[%clk 0:00:38]} 27. Bb5 {[%clk 0:00:42]}  Bg5 {[%clk 0:00:36]} 28. f4 {[%clk 0:00:41]}  Be7 {[%clk 0:00:34]} 29. Bxc4 {[%clk 0:00:41]}  Ba3 {[%clk 0:00:34]} 30. Kf2 {[%clk 0:00:31]}  Bb2 {[%clk 0:00:34]} 31. Ke3 {[%clk 0:00:32]}  Bxc3 {[%clk 0:00:34]} 32. h3 {[%clk 0:00:32]}  Ke7 {[%clk 0:00:33]} 33. g4 {[%clk 0:00:32]}  f6 {[%clk 0:00:33]} 34. Ke4 {[%clk 0:00:30]}  g5 {[%clk 0:00:28]} 35. fxg5 {[%clk 0:00:27]}  hxg5 {[%clk 0:00:26]} 36. a4 {[%clk 0:00:21]}  Kd6 {[%clk 0:00:25]} 37. Bb5 {[%clk 0:00:19]}  Bb2 {[%clk 0:00:24]} 38. d5 {[%clk 0:00:19]}  Bc3 {[%clk 0:00:24]} 39. Bc6 {[%clk 0:00:18]}  Bb2 {[%clk 0:00:24]} 40. Kf5 {[%clk 0:00:18]}  Bc3 {[%clk 0:00:23]} 41. Kg6 {[%clk 0:00:18]}  Bb2 {[%clk 0:00:23]} 42. Kh5 {[%clk 0:00:19]}  Bc3 {[%clk 0:00:22]} 43. h4 {[%clk 0:00:19]}  gxh4 {[%clk 0:00:22]} 44. Kxh4 {[%clk 0:00:20]}  Bb2 {[%clk 0:00:22]} 45. Kh5 {[%clk 0:00:15]}  Bc3 {[%clk 0:00:22]} 46. g5 {[%clk 0:00:16]}  fxg5 {[%clk 0:00:21]} 47. Kxg5 {[%clk 0:00:16]}  Bb4 {[%clk 0:00:21]} 48. Kf5 {[%clk 0:00:17]}  Bc3 {[%clk 0:00:21]} 49. Ke4 {[%clk 0:00:18]}  Bb4 {[%clk 0:00:21]} 50. Kd3 {[%clk 0:00:19]}  Be1 {[%clk 0:00:20]} 51. Kc4 {[%clk 0:00:20]}  Bd2 {[%clk 0:00:20]} 52. Kb5 {[%clk 0:00:20]}  Be1 {[%clk 0:00:20]} 53. Kc4 {[%clk 0:00:21]}  Bd2 {[%clk 0:00:20]} 54. Kb5 {[%clk 0:00:22]}  Be1 {[%clk 0:00:20]} 55. Kc4 {[%clk 0:00:23]} 1/2-1/2


[Site "https://www.chess.com"]

[Event "Titled Tuesday Blitz January 17 Early 2023"]
[White "Garmash, Aliona"]
[Black "Smietanska, Wiktoria"]
[WhiteFideId "34127620"]
[BlackFideId "21869359"]
[WhiteElo "2039"]
[BlackElo "1936"]
[Result "0-1"]
[Round "08"]
[TimeControl "180+2"]
[Date "2023.01.17"]
[WhiteClock "0:00:01"]
[BlackClock "0:00:14"]

1. d4 {[%clk 0:03:00]}  Nf6 {[%clk 0:03:00]} 2. c4 {[%clk 0:02:59]}  g6 {[%clk 0:03:00]} 3. Nc3 {[%clk 0:02:59]}  Bg7 {[%clk 0:02:58]} 4. e4 {[%clk 0:02:58]}  d6 {[%clk 0:02:57]} 5. Nf3 {[%clk 0:02:58]}  O-O {[%clk 0:02:57]} 6. Be2 {[%clk 0:02:59]}  e5 {[%clk 0:02:57]} 7. Be3 {[%clk 0:02:59]}  Nc6 {[%clk 0:02:56]} 8. d5 {[%clk 0:02:59]}  Ne7 {[%clk 0:02:56]} 9. Nd2 {[%clk 0:02:59]}  Ne8 {[%clk 0:02:54]} 10. g4 {[%clk 0:02:34]}  f5 {[%clk 0:02:51]} 11. gxf5 {[%clk 0:02:27]}  gxf5 {[%clk 0:02:46]} 12. Bg5 {[%clk 0:02:24]}  h6 {[%clk 0:02:43]} 13. Bh4 {[%clk 0:02:21]}  f4 {[%clk 0:02:39]} 14. Rg1 {[%clk 0:02:01]}  Nf6 {[%clk 0:02:24]} 15. Bh5 {[%clk 0:01:33]}  Nxh5 {[%clk 0:02:04]} 16. Qxh5 {[%clk 0:01:32]}  Kh7 {[%clk 0:01:57]} 17. Nf3 {[%clk 0:01:08]}  Qe8 {[%clk 0:01:51]} 18. Qxe8 {[%clk 0:00:45]}  Rxe8 {[%clk 0:01:49]} 19. O-O-O {[%clk 0:00:45]}  Ng6 {[%clk 0:01:46]} 20. Nb5 {[%clk 0:00:30]}  Nxh4 {[%clk 0:01:35]} 21. Nxh4 {[%clk 0:00:28]}  Re7 {[%clk 0:01:33]} 22. Rg2 {[%clk 0:00:17]}  a6 {[%clk 0:01:27]} 23. Nc3 {[%clk 0:00:16]}  Bh3 {[%clk 0:01:22]} 24. Rg6 {[%clk 0:00:16]}  Rf8 {[%clk 0:01:18]} 25. Rdg1 {[%clk 0:00:15]}  Bf6 {[%clk 0:01:15]} 26. Nf3 {[%clk 0:00:13]}  Bd7 {[%clk 0:01:03]} 27. h4 {[%clk 0:00:12]}  Be8 {[%clk 0:01:02]} 28. R6g2 {[%clk 0:00:10]}  Bh5 {[%clk 0:01:01]} 29. Nh2 {[%clk 0:00:08]}  Bxh4 {[%clk 0:00:56]} 30. Nf1 {[%clk 0:00:05]}  Bg5 {[%clk 0:00:47]} 31. Rh2 {[%clk 0:00:05]}  Kg6 {[%clk 0:00:43]} 32. Kc2 {[%clk 0:00:02]}  Rg7 {[%clk 0:00:28]} 33. Nd2 {[%clk 0:00:01]}  c5 {[%clk 0:00:16]} 34. f3 {[%clk 0:00:01]}  b6 {[%clk 0:00:14]} 0-1


[Site "https://www.chess.com"]

[Event "Titled Tuesday Blitz January 17 Early 2023"]
[White "Cepo, Toni"]
[Black "Manon-og, Ramon Jr."]
[WhiteFideId "4675916"]
[BlackFideId "5200776"]
[WhiteElo "2145"]
[BlackElo "1999"]
[Result "1-0"]
[Round "08"]
[TimeControl "180+2"]
[Date "2023.01.17"]
[WhiteClock "0:00:15"]
[BlackClock "0:01:07"]

1. e4 {[%clk 0:03:00]}  c5 {[%clk 0:02:55]} 2. Nf3 {[%clk 0:02:59]}  d6 {[%clk 0:02:54]} 3. d4 {[%clk 0:02:59]}  cxd4 {[%clk 0:02:55]} 4. Nxd4 {[%clk 0:02:58]}  Nf6 {[%clk 0:02:55]} 5. Nc3 {[%clk 0:02:58]}  a6 {[%clk 0:02:56]} 6. h3 {[%clk 0:02:56]}  e5 {[%clk 0:02:56]} 7. Nb3 {[%clk 0:02:55]}  h5 {[%clk 0:02:56]} 8. Bg5 {[%clk 0:02:32]}  Be6 {[%clk 0:02:38]} 9. Bxf6 {[%clk 0:02:15]}  Qxf6 {[%clk 0:02:11]} 10. Nd5 {[%clk 0:02:10]}  Qd8 {[%clk 0:02:09]} 11. Bc4 {[%clk 0:01:55]}  Nd7 {[%clk 0:02:08]} 12. a4 {[%clk 0:01:52]}  Rc8 {[%clk 0:02:07]} 13. Nd2 {[%clk 0:01:45]}  Nb6 {[%clk 0:02:03]} 14. Nxb6 {[%clk 0:01:35]}  Qxb6 {[%clk 0:02:04]} 15. b3 {[%clk 0:01:25]}  Qd4 {[%clk 0:02:01]} 16. O-O {[%clk 0:01:16]}  Be7 {[%clk 0:01:58]} 17. Qe2 {[%clk 0:01:08]}  O-O {[%clk 0:01:49]} 18. Rad1 {[%clk 0:01:05]}  Qc3 {[%clk 0:01:43]} 19. Bxe6 {[%clk 0:00:57]}  fxe6 {[%clk 0:01:44]} 20. Nc4 {[%clk 0:00:56]}  Rc6 {[%clk 0:01:29]} 21. Rd3 {[%clk 0:00:47]}  Qb4 {[%clk 0:01:27]} 22. Qxh5 {[%clk 0:00:47]}  b6 {[%clk 0:01:25]} 23. Rg3 {[%clk 0:00:38]}  b5 {[%clk 0:01:21]} 24. axb5 {[%clk 0:00:29]}  axb5 {[%clk 0:01:22]} 25. Qg6 {[%clk 0:00:24]}  Rf7 {[%clk 0:01:19]} 26. Ne3 {[%clk 0:00:20]}  Bf6 {[%clk 0:01:13]} 27. Ng4 {[%clk 0:00:16]}  Bh4 {[%clk 0:01:07]} 28. Nh6+ {[%clk 0:00:15]}  Kh8 {[%clk 0:01:07]} 29. Nxf7+ {[%clk 0:00:15]} 1-0


[Site "https://www.chess.com"]

[Event "Titled Tuesday Blitz January 17 Early 2023"]
[White "Deev, Andrei"]
[Black "Kuchava, Ana"]
[WhiteFideId "4102690"]
[BlackFideId "13605348"]
[WhiteElo "2390"]
[BlackElo "2101"]
[Result "1-0"]
[Round "08"]
[TimeControl "180+2"]
[Date "2023.01.17"]
[WhiteClock "0:01:43"]
[BlackClock "0:00:12"]

1. e4 {[%clk 0:02:58]}  c5 {[%clk 0:02:59]} 2. Nf3 {[%clk 0:02:57]}  d6 {[%clk 0:02:59]} 3. c3 {[%clk 0:02:57]}  Nf6 {[%clk 0:02:56]} 4. Be2 {[%clk 0:02:57]}  Nc6 {[%clk 0:02:52]} 5. d4 {[%clk 0:02:57]}  cxd4 {[%clk 0:02:42]} 6. cxd4 {[%clk 0:02:58]}  d5 {[%clk 0:02:43]} 7. e5 {[%clk 0:02:57]}  Ne4 {[%clk 0:02:42]} 8. Nc3 {[%clk 0:02:57]}  Nxc3 {[%clk 0:02:38]} 9. bxc3 {[%clk 0:02:58]}  e6 {[%clk 0:02:34]} 10. Bd3 {[%clk 0:02:55]}  Be7 {[%clk 0:02:29]} 11. Qc2 {[%clk 0:02:54]}  g6 {[%clk 0:02:14]} 12. Bh6 {[%clk 0:02:52]}  Bf8 {[%clk 0:02:01]} 13. Bxf8 {[%clk 0:02:47]}  Kxf8 {[%clk 0:01:59]} 14. h4 {[%clk 0:02:48]}  h5 {[%clk 0:01:59]} 15. Ng5 {[%clk 0:02:44]}  Kg7 {[%clk 0:01:46]} 16. Rh3 {[%clk 0:02:42]}  Na5 {[%clk 0:01:40]} 17. Rf3 {[%clk 0:02:27]}  Rf8 {[%clk 0:01:35]} 18. Rf6 {[%clk 0:02:13]}  Nc4 {[%clk 0:00:37]} 19. Bxg6 {[%clk 0:02:08]}  Nd6 {[%clk 0:00:18]} 20. Bxh5 {[%clk 0:01:52]}  Nf5 {[%clk 0:00:12]} 21. g4 {[%clk 0:01:43]} 1-0


[Site "https://www.chess.com"]

[Event "Titled Tuesday Blitz January 17 Early 2023"]
[White "Garrido, Denis"]
[Black "Ezat, Mohamed"]
[WhiteFideId "601217"]
[BlackFideId "10600906"]
[WhiteElo "2205"]
[BlackElo "2402"]
[Result "0-1"]
[Round "08"]
[TimeControl "180+2"]
[Date "2023.01.17"]
[WhiteClock "0:00:04"]
[BlackClock "0:00:06"]

1. e4 {[%clk 0:03:00]}  e6 {[%clk 0:03:00]} 2. d4 {[%clk 0:02:59]}  d5 {[%clk 0:02:57]} 3. e5 {[%clk 0:03:00]}  c5 {[%clk 0:02:56]} 4. c3 {[%clk 0:03:00]}  Nc6 {[%clk 0:02:57]} 5. Nf3 {[%clk 0:03:00]}  f6 {[%clk 0:02:57]} 6. Bd3 {[%clk 0:02:51]}  f5 {[%clk 0:02:27]} 7. h4 {[%clk 0:02:47]}  Be7 {[%clk 0:02:24]} 8. Bf4 {[%clk 0:02:31]}  Qb6 {[%clk 0:02:22]} 9. Na3 {[%clk 0:02:10]}  a6 {[%clk 0:02:14]} 10. Rb1 {[%clk 0:02:03]}  Bd7 {[%clk 0:02:10]} 11. O-O {[%clk 0:01:56]}  Nh6 {[%clk 0:02:03]} 12. dxc5 {[%clk 0:01:37]}  Bxc5 {[%clk 0:01:59]} 13. Nc2 {[%clk 0:01:36]}  Ng4 {[%clk 0:01:57]} 14. Qe2 {[%clk 0:01:32]}  Qd8 {[%clk 0:01:49]} 15. Ncd4 {[%clk 0:01:27]}  g6 {[%clk 0:01:36]} 16. g3 {[%clk 0:01:13]}  h6 {[%clk 0:01:06]} 17. Kg2 {[%clk 0:01:12]}  Qe7 {[%clk 0:00:54]} 18. Rbd1 {[%clk 0:00:39]}  O-O-O {[%clk 0:00:51]} 19. b4 {[%clk 0:00:38]}  Bxd4 {[%clk 0:00:42]} 20. cxd4 {[%clk 0:00:36]}  Nxb4 {[%clk 0:00:41]} 21. Rb1 {[%clk 0:00:29]}  Nxd3 {[%clk 0:00:39]} 22. Qxd3 {[%clk 0:00:29]}  Bb5 {[%clk 0:00:39]} 23. Rfc1+ {[%clk 0:00:27]}  Kb8 {[%clk 0:00:37]} 24. Qd2 {[%clk 0:00:20]}  g5 {[%clk 0:00:36]} 25. hxg5 {[%clk 0:00:20]}  hxg5 {[%clk 0:00:36]} 26. Bxg5 {[%clk 0:00:21]}  Qd7 {[%clk 0:00:30]} 27. Bxd8 {[%clk 0:00:20]}  Rxd8 {[%clk 0:00:30]} 28. Rh1 {[%clk 0:00:20]}  Bc4 {[%clk 0:00:28]} 29. a3 {[%clk 0:00:20]}  Rf8 {[%clk 0:00:22]} 30. Qb4 {[%clk 0:00:19]}  Rg8 {[%clk 0:00:20]} 31. Nd2 {[%clk 0:00:17]}  Bb5 {[%clk 0:00:19]} 32. Nb3 {[%clk 0:00:15]}  f4 {[%clk 0:00:17]} 33. Nc5 {[%clk 0:00:15]}  Qg7 {[%clk 0:00:16]} 34. Nxe6 {[%clk 0:00:11]}  Qg6 {[%clk 0:00:16]} 35. Nxf4 {[%clk 0:00:11]}  Qe4+ {[%clk 0:00:15]} 36. f3 {[%clk 0:00:07]}  Qc2+ {[%clk 0:00:15]} 37. Kh3 {[%clk 0:00:07]}  Nf2+ {[%clk 0:00:13]} 38. Kh4 {[%clk 0:00:07]}  Qh7+ {[%clk 0:00:08]} 39. Nh5 {[%clk 0:00:08]}  Nxh1 {[%clk 0:00:07]} 40. Rxh1 {[%clk 0:00:06]}  Be8 {[%clk 0:00:08]} 41. g4 {[%clk 0:00:06]}  Bxh5 {[%clk 0:00:07]} 42. gxh5 {[%clk 0:00:06]}  Qf5 {[%clk 0:00:07]} 43. Qd6+ {[%clk 0:00:04]}  Ka8 {[%clk 0:00:06]} 0-1


[Site "https://www.chess.com"]